bitfinex/quotes_BTCUSD_20230404
["timestamp","ask_amount","ask_price","bid_price","bid_amount"]
[1680594432587,0.00221,27999.0,27997.0,0.43198639]
[1680594432793,0.002,27999.0,27997.0,0.43198639]
[1680594433028,0.002,27999.0,27998.0,0.82991056]
[1680594433226,0.00021,28003.0,27999.0,0.015879]
[1680594433444,1.28570778,28005.0,28000.0,0.99255737]
[1680594433662,1.28570778,28005.0,28003.0,0.3752]
[1680594433889,1.28570778,28005.0,28004.0,0.491655]
[1680594434104,1.28570778,28005.0,28004.0,0.4752]
[1680594434787,1.28570778,28005.0,28004.0,0.72401174]
[1680594435010,1.28649778,28005.0,28004.0,1.01798515]
[1680594435223,1.28549778,28005.0,28004.0,1.01798515]
[1680594435430,1.46649778,28005.0,28004.0,1.03898515]
[1680594435843,1.46549778,28005.0,28004.0,0.44627269]
[1680594436045,1.46649778,28005.0,28004.0,0.46627269]
[1680594436253,1.46549778,28005.0,28004.0,0.44627269]
[1680594436663,1.46649778,28005.0,28004.0,0.84247269]
[1680594436903,1.46649778,28005.0,28004.0,0.94879496]
[1680594437106,1.46649778,28005.0,28004.0,0.96592696]
[1680594437528,1.46649778,28005.0,28004.0,0.82147269]
[1680594437740,1.46549778,28005.0,28004.0,0.82147269]
[1680594437953,1.46649778,28005.0,28004.0,0.84147269]
[1680594438178,1.46643118,28005.0,28004.0,0.82147269]
[1680594438590,1.46743118,28005.0,28004.0,0.84247269]
[1680594438803,0.18,28005.0,28004.0,0.93421996]
[1680594439017,0.181,28005.0,28004.0,0.95415996]
[1680594439225,0.181,28005.0,28004.0,0.91773496]
[1680594439424,0.18,28005.0,28004.0,0.93380696]
[1680594439627,0.181,28005.0,28004.0,0.95480696]
[1680594439930,0.181,28005.0,28004.0,0.93873496]
[1680594440122,0.181,28005.0,28004.0,0.95556596]
[1680594440559,0.181,28005.0,28004.0,0.93873496]
[1680594440768,0.18,28005.0,28004.0,0.91773496]
[1680594441019,0.181,28005.0,28004.0,0.93773496]
[1680594441227,0.181,28005.0,28004.0,0.91773496]
[1680594441446,0.182,28005.0,28004.0,0.93873496]
[1680594441661,0.181,28005.0,28004.0,0.93873496]
[1680594441882,0.18,28005.0,28004.0,0.91773496]
[1680594442100,0.181,28005.0,28004.0,0.93873496]
[1680594442317,0.18,28005.0,28004.0,0.91773496]
[1680594442535,0.181,28005.0,28004.0,0.93873496]
[1680594443223,0.181,28005.0,28004.0,0.77895406]
[1680594444998,0.00242117,28006.0,28005.0,0.80996566]
[1680594445216,0.00221117,28006.0,28005.0,0.90271245]
[1680594446758,0.00321117,28006.0,28005.0,0.92271245]
[1680594446942,0.00221117,28006.0,28005.0,0.90271245]
[1680594447185,0.00321117,28006.0,28005.0,0.92271245]
[1680594447594,0.18321117,28006.0,28005.0,0.92271245]
[1680594450469,0.18321117,28006.0,28005.0,0.82996566]
[1680594458374,1.46855415,28006.0,28005.0,0.82996566]
[1680594458496,1.51136315,28006.0,28005.0,0.82996566]
[1680594462968,1.46876415,28006.0,28005.0,0.82996566]
[1680594463417,1.50722715,28006.0,28005.0,0.82996566]
[1680594463847,1.46876415,28006.0,28005.0,0.82996566]
[1680594464797,1.51139415,28006.0,28005.0,0.82996566]
[1680594465233,1.46876415,28006.0,28005.0,0.82996566]
[1680594468023,1.46876415,28006.0,28005.0,0.82996566]
[1680594468210,1.51062515,28006.0,28005.0,0.02]
[1680594468410,1.46855415,28006.0,28005.0,0.02]
[1680594470166,1.46855415,28006.0,28005.0,0.3952]
[1680594470388,1.65217089,28006.0,28005.0,0.02]
[1680594470607,1.65656844,28006.0,28005.0,0.02]
[1680594470806,1.61516244,28006.0,28005.0,0.02]
[1680594471051,1.65668844,28006.0,28005.0,0.02]
[1680594471310,1.61516244,28006.0,28005.0,0.02]
[1680594473657,1.61537244,28006.0,28005.0,0.02]
[1680594475244,1.61516244,28006.0,28005.0,0.02]
[1680594475755,1.65798544,28006.0,28005.0,0.02]
[1680594475975,1.61516244,28006.0,28005.0,0.02]
[1680594477305,1.46855415,28006.0,28005.0,1.18582291]
[1680594477524,1.46855415,28006.0,28005.0,1.18600291]
[1680594478628,1.46855415,28006.0,28005.0,1.17171991]
[1680594478888,1.46855415,28006.0,28005.0,1.18600291]
[1680594479967,0.18321117,28006.0,28005.0,1.18600291]
[1680594480563,0.18321117,28006.0,28005.0,0.81700935]
[1680594480775,0.18321117,28006.0,28005.0,0.83129235]
[1680594481585,0.18321117,28006.0,28005.0,0.98349235]
[1680594481993,0.18321117,28006.0,28005.0,1.33820291]
[1680594482190,0.18321117,28006.0,28005.0,1.18600291]
[1680594483520,0.18321117,28006.0,28005.0,0.91560141]
[1680594483739,0.18321117,28006.0,28005.0,0.95125141]
[1680594483985,0.18321117,28006.0,28005.0,1.03681796]
[1680594484432,0.18321117,28006.0,28005.0,1.01681796]
[1680594484433,0.18221117,28006.0,28005.0,1.01681796]
[1680594484647,0.18221117,28006.0,28005.0,0.95925141]
[1680594485183,0.18221117,28006.0,28005.0,0.93125141]
[1680594485420,0.18221117,28006.0,28005.0,0.95925141]
[1680594485847,0.18221117,28006.0,28005.0,1.31987772]
[1680594486062,0.18221117,28006.0,28005.0,0.95925141]
[1680594486722,0.18221117,28006.0,28005.0,1.04425141]
[1680594487602,0.18221117,28006.0,28005.0,1.01625141]
[1680594487888,0.18221117,28006.0,28005.0,1.04425141]
[1680594488116,0.13373795,28006.0,28005.0,1.12975796]
[1680594488339,0.13373795,28006.0,28005.0,1.12963796]
[1680594489217,0.13373795,28006.0,28005.0,1.12981796]
[1680594489439,0.02305,28008.0,28006.0,0.24714348]
[1680594489663,0.02299,28008.0,28007.0,1.23058015]
[1680594489889,0.02299,28008.0,28007.0,1.31558015]
[1680594490108,0.02299,28008.0,28007.0,1.45400875]
[1680594490326,0.02299,28008.0,28007.0,1.55400875]
[1680594490765,0.20299,28008.0,28007.0,1.63950334]
[1680594490985,0.2032,28008.0,28007.0,1.97447912]
[1680594491215,0.2032,28008.0,28007.0,2.01737034]
[1680594491449,0.02299,28010.0,28009.0,0.41085]
[1680594491450,0.0232,28010.0,28009.0,0.41085]
[1680594491711,0.0232,28010.0,28009.0,1.66559293]
[1680594491712,0.02299,28010.0,28009.0,1.66559293]
[1680594491936,0.02299,28010.0,28009.0,1.76559293]
[1680594492149,0.02299,28010.0,28009.0,1.58679993]
[1680594492364,0.02299,28010.0,28009.0,1.37321105]
[1680594492800,0.02299,28010.0,28009.0,1.80421105]
[1680594493235,0.02299,28010.0,28009.0,1.83233105]
[1680594493450,0.02299,28010.0,28009.0,1.80421105]
[1680594493664,0.02299,28010.0,28009.0,1.83221105]
[1680594494134,0.02299,28010.0,28009.0,2.21782653]
[1680594494436,0.02299,28012.0,28011.0,0.03565]
[1680594494650,0.02299,28012.0,28011.0,1.79420471]
[1680594494870,0.02299,28012.0,28011.0,1.83520251]
[1680594495535,0.00858,28013.0,28012.0,0.51085]
[1680594495783,0.00858,28013.0,28012.0,1.33020538]
[1680594496008,0.00858,28013.0,28012.0,1.86569586]
[1680594496225,0.00858,28013.0,28012.0,1.78039804]
[1680594497135,0.00858,28013.0,28012.0,1.80839804]
[1680594498017,0.00858,28013.0,28012.0,2.10839804]
[1680594498269,0.0085134,28013.0,28012.0,2.08039804]
[1680594498462,0.0085134,28013.0,28012.0,2.10839804]
[1680594499387,0.0085134,28013.0,28012.0,2.08039804]
[1680594499640,0.0085134,28013.0,28012.0,2.10839804]
[1680594501049,0.0085134,28013.0,28012.0,1.78539804]
[1680594501472,0.0085134,28013.0,28012.0,1.60692804]
[1680594501723,0.1785134,28013.0,28012.0,1.60692804]
[1680594501946,0.1785134,28013.0,28012.0,1.60710804]
[1680594503077,0.1785134,28013.0,28012.0,1.78557804]
[1680594503296,0.0085134,28013.0,28012.0,1.78557804]
[1680594503547,0.0085134,28013.0,28012.0,1.61692804]
[1680594505401,0.0085134,28013.0,28012.0,1.79541804]
[1680594505981,0.0085134,28013.0,28012.0,1.61692804]
[1680594508396,0.0085134,28013.0,28012.0,1.75972304]
[1680594516983,0.0085134,28013.0,28012.0,1.93821304]
[1680594520264,0.0085134,28013.0,28012.0,1.75972304]
[1680594520458,0.0085134,28013.0,28012.0,1.59012304]
[1680594521847,0.00842651,28013.0,28012.0,1.59012304]
[1680594523555,0.00842651,28013.0,28012.0,1.59024304]
[1680594523770,0.00842651,28013.0,28012.0,1.59012304]
[1680594525582,0.00842651,28013.0,28012.0,1.44732804]
[1680594526004,0.00842651,28013.0,28012.0,1.53262586]
[1680594527115,0.00842651,28013.0,28012.0,1.44732804]
[1680594527325,0.00842651,28013.0,28012.0,1.53262586]
[1680594529259,0.00842651,28013.0,28012.0,1.53274586]
[1680594529723,0.00842651,28013.0,28012.0,1.99696061]
[1680594529931,0.00842651,28013.0,28012.0,1.44732804]
[1680594530510,0.00842651,28013.0,28012.0,1.66057233]
[1680594530716,0.00842651,28013.0,28012.0,1.53262586]
[1680594531319,0.00842651,28013.0,28012.0,1.63257233]
[1680594531776,0.00842651,28013.0,28012.0,1.66057233]
[1680594532176,0.00842651,28013.0,28012.0,1.66063233]
[1680594532410,0.00842651,28013.0,28012.0,1.87152095]
[1680594532584,0.00842651,28013.0,28012.0,2.04211624]
[1680594532758,0.00842651,28013.0,28012.0,1.87152095]
[1680594533382,0.00842651,28013.0,28012.0,2.04211624]
[1680594533938,0.00842651,28013.0,28012.0,1.68740568]
[1680594534199,0.00842651,28013.0,28012.0,1.97120654]
[1680594534633,0.00842651,28013.0,28012.0,1.60240658]
[1680594534858,0.00842651,28013.0,28012.0,1.98929391]
[1680594535659,0.00842651,28013.0,28012.0,1.60240658]
[1680594535856,0.00842651,28013.0,28012.0,2.06022376]
[1680594536054,0.00842651,28013.0,28012.0,1.8465611]
[1680594536480,0.00842651,28013.0,28012.0,1.8185611]
[1680594536860,0.00842651,28013.0,28012.0,1.8465611]
[1680594537294,0.00842651,28013.0,28012.0,1.38874392]
[1680594537515,0.00842651,28013.0,28012.0,1.8203302]
[1680594537969,0.00842651,28013.0,28012.0,1.20743972]
[1680594538201,0.00842651,28013.0,28012.0,0.77131207]
[1680594538202,0.20842651,28013.0,28012.0,0.77131207]
[1680594538427,0.20863651,28013.0,28012.0,0.55745783]
[1680594539091,0.20863651,28013.0,28012.0,0.68582319]
[1680594539356,0.29013651,28013.0,28012.0,0.65782319]
[1680594539578,0.29113651,28013.0,28012.0,0.65782319]
[1680594539795,0.29013651,28013.0,28012.0,0.4701418]
[1680594540018,0.29113651,28013.0,28012.0,0.4981418]
[1680594540262,0.29013651,28013.0,28012.0,0.64122519]
[1680594540480,0.29113651,28013.0,28012.0,0.53785983]
[1680594540696,0.29113651,28013.0,28012.0,0.66625118]
[1680594540913,0.29113651,28013.0,28012.0,0.49516779]
[1680594541131,0.29113651,28013.0,28012.0,0.68158618]
[1680594541786,0.29113651,28013.0,28012.0,0.55319483]
[1680594542515,0.29113651,28013.0,28012.0,0.55331483]
[1680594543565,0.29113651,28013.0,28012.0,0.68158223]
[1680594544903,0.29113651,28013.0,28012.0,1.11390445]
[1680594545349,0.2908556,28013.0,28012.0,1.11472493]
[1680594547242,0.2853556,28013.0,28012.0,1.11472493]
[1680594547647,0.00021,28016.0,28012.0,2.6935239]
[1680594547848,0.02288,28022.0,28017.0,0.41085]
[1680594548050,0.02288,28022.0,28021.0,0.41085]
[1680594548249,0.02288,28022.0,28021.0,1.65222446]
[1680594548451,0.02288,28022.0,28021.0,1.39564081]
[1680594548650,0.02288,28022.0,28021.0,1.49564081]
[1680594548882,0.02288,28022.0,28021.0,1.56670626]
[1680594549035,0.02288,28022.0,28021.0,2.04466916]
[1680594549470,0.02288,28022.0,28021.0,2.18374765]
[1680594550145,0.02288,28022.0,28021.0,2.12116916]
[1680594550576,0.01024,28023.0,28022.0,0.1355]
[1680594550789,0.01024,28023.0,28022.0,2.37534396]
[1680594551006,0.01024,28023.0,28022.0,2.04338051]
[1680594551221,0.01024,28023.0,28022.0,2.04328051]
[1680594551431,0.01024,28023.0,28022.0,2.61459723]
[1680594551647,0.01024,28023.0,28022.0,2.63053378]
[1680594552114,0.02288,28025.0,28024.0,0.41085]
[1680594552351,0.02288,28025.0,28024.0,2.01175509]
[1680594552980,0.11854073,28028.0,28026.0,0.41085]
[1680594553192,0.11854073,28028.0,28027.0,0.96612356]
[1680594553455,0.11854073,28028.0,28027.0,1.61025962]
[1680594553684,0.11854073,28028.0,28027.0,1.52504066]
[1680594554126,0.11854073,28028.0,28027.0,1.62504066]
[1680594554552,0.11854073,28028.0,28027.0,1.65304066]
[1680594557960,0.11854073,28028.0,28027.0,1.66304066]
[1680594558179,0.11840753,28028.0,28027.0,1.66304066]
[1680594560930,0.11840753,28028.0,28027.0,1.57814066]
[1680594561181,0.11840753,28028.0,28027.0,1.66264066]
[1680594562621,0.11840753,28028.0,28027.0,1.57814066]
[1680594565466,0.11840753,28028.0,28027.0,1.47814066]
[1680594567769,0.11840753,28028.0,28027.0,1.57814066]
[1680594569988,0.11840753,28028.0,28027.0,1.52105366]
[1680594575492,0.11840753,28028.0,28027.0,1.42105366]
[1680594576729,0.11840753,28028.0,28027.0,1.39305366]
[1680594576932,0.11840753,28028.0,28027.0,1.42105366]
[1680594578379,0.11830516,28028.0,28027.0,1.42105366]
[1680594578591,0.02288,28030.0,28027.0,2.00511747]
[1680594578802,0.02288,28030.0,28029.0,0.76556056]
[1680594579026,0.02288,28030.0,28029.0,1.30200756]
[1680594579437,0.02288,28030.0,28029.0,1.40200756]
[1680594580055,0.02288,28030.0,28029.0,1.43000756]
[1680594580877,0.02288,28030.0,28029.0,1.51450756]
[1680594581089,0.02288,28030.0,28029.0,1.76942685]
[1680594581288,0.02288,28030.0,28029.0,1.76924685]
[1680594581499,0.02288,28030.0,28029.0,1.59086685]
[1680594586160,0.02288,28030.0,28029.0,1.67608581]
[1680594587027,0.02288,28030.0,28029.0,1.59086685]
[1680594587237,0.02288,28030.0,28029.0,1.67608581]
[1680594589432,0.02288,28030.0,28029.0,1.59086685]
[1680594590985,0.02288,28030.0,28029.0,1.67608581]
[1680594591225,0.02288,28030.0,28029.0,1.59086685]
[1680594591446,0.02288,28030.0,28029.0,2.06511524]
[1680594593861,0.02288,28030.0,28029.0,1.89467215]
[1680594596020,0.02288,28030.0,28029.0,1.89479215]
[1680594596459,0.02288,28030.0,28029.0,1.89467215]
[1680594599163,0.02288,28030.0,28029.0,1.63975286]
[1680594600655,0.02288,28030.0,28029.0,2.066937]
[1680594600873,0.02288,28030.0,28029.0,1.91143332]
[1680594601095,0.02288,28030.0,28029.0,1.47295286]
[1680594602643,0.02288,28030.0,28029.0,1.57295286]
[1680594603173,0.02288,28030.0,28029.0,2.26721959]
[1680594603394,0.02288,28030.0,28029.0,1.58718331]
[1680594603611,0.02278896,28030.0,28029.0,1.58718331]
[1680594603832,0.02278896,28030.0,28029.0,1.28718331]
[1680594605836,0.02278896,28030.0,28029.0,0.8182423]
[1680594606045,0.02278896,28030.0,28029.0,0.96948724]
[1680594606261,0.02278896,28030.0,28029.0,0.94148724]
[1680594606480,0.02278896,28030.0,28029.0,0.96948724]
[1680594606710,0.02278896,28030.0,28029.0,1.14763324]
[1680594607400,0.02278896,28030.0,28029.0,1.17563324]
[1680594607612,0.02278896,28030.0,28029.0,0.80043324]
[1680594607829,0.02278896,28030.0,28029.0,0.82843324]
[1680594608704,0.02278896,28030.0,28029.0,0.77243324]
[1680594608931,0.02278896,28030.0,28029.0,0.80043324]
[1680594609147,0.02278896,28030.0,28029.0,0.77243324]
[1680594609366,0.02278896,28030.0,28029.0,0.80043324]
[1680594609638,0.02278896,28030.0,28029.0,0.77243324]
[1680594609853,0.02278896,28030.0,28029.0,0.4430423]
[1680594610083,0.02278896,28030.0,28029.0,0.58229958]
[1680594610304,0.02278896,28030.0,28029.0,0.71029958]
[1680594610524,0.02278896,28030.0,28029.0,1.44021014]
[1680594610767,0.02278896,28030.0,28029.0,1.41221014]
[1680594611598,0.02278896,28030.0,28029.0,1.44021014]
[1680594611792,0.02278896,28030.0,28029.0,1.41221014]
[1680594611997,0.02278896,28030.0,28029.0,1.44021014]
[1680594612549,0.02278896,28030.0,28029.0,1.34021014]
[1680594612973,0.02278896,28030.0,28029.0,1.59627359]
[1680594613639,0.02278896,28030.0,28029.0,1.59639359]
[1680594613847,0.02278896,28030.0,28029.0,1.6587755]
[1680594614268,0.02278896,28030.0,28029.0,1.40271205]
[1680594614491,0.02278896,28030.0,28029.0,1.50271205]
[1680594614753,0.02278896,28030.0,28029.0,1.7587755]
[1680594614948,0.02278896,28030.0,28029.0,1.50271205]
[1680594615168,0.02278896,28030.0,28029.0,1.50259205]
[1680594615399,0.02278896,28030.0,28029.0,1.7586555]
[1680594615623,0.02278896,28030.0,28029.0,1.50259205]
[1680594616490,0.02278896,28030.0,28029.0,1.45978105]
[1680594616708,0.02278896,28030.0,28029.0,1.50259205]
[1680594616929,0.02278896,28030.0,28029.0,1.44021014]
[1680594617151,0.02278896,28030.0,28029.0,1.7883993]
[1680594617323,0.02278896,28030.0,28029.0,1.44033014]
[1680594618098,0.02278896,28030.0,28029.0,1.44021014]
[1680594618312,0.02278896,28030.0,28029.0,1.76418995]
[1680594618743,0.02278896,28030.0,28029.0,1.59627359]
[1680594618955,0.02278896,28030.0,28029.0,1.6586996]
[1680594619176,0.02278896,28030.0,28029.0,2.00957028]
[1680594619390,0.02278896,28030.0,28029.0,1.6586996]
[1680594621031,0.02278896,28030.0,28029.0,2.01123279]
[1680594621248,0.02278896,28030.0,28029.0,1.6590423]
[1680594622742,0.02278896,28030.0,28029.0,1.40263615]
[1680594623163,0.02278896,28030.0,28029.0,1.50263615]
[1680594623574,0.02278896,28030.0,28029.0,1.40263615]
[1680594624849,0.02278896,28030.0,28029.0,1.50263615]
[1680594626322,0.02271327,28030.0,28029.0,1.50263615]
[1680594627521,0.02271327,28030.0,28029.0,1.40263615]
[1680594628551,0.02271327,28030.0,28029.0,1.50263615]
[1680594633636,0.02271327,28030.0,28029.0,2.02420694]
[1680594633886,0.02271327,28030.0,28029.0,1.64534515]
[1680594634706,0.02271327,28030.0,28029.0,1.50263615]
[1680594640273,0.02271327,28030.0,28029.0,1.50275615]
[1680594640499,0.02271327,28030.0,28029.0,1.50263615]
[1680594642112,0.02271327,28030.0,28029.0,1.48493615]
[1680594643398,0.02271327,28030.0,28029.0,1.35688441]
[1680594643619,0.02271327,28030.0,28029.0,1.36907041]
[1680594645439,0.02271327,28030.0,28029.0,1.41627041]
[1680594650525,0.02271327,28030.0,28029.0,1.83403259]
[1680594650955,0.02271327,28030.0,28029.0,1.41627041]
[1680594652763,0.02271327,28030.0,28029.0,1.24901313]
[1680594661041,0.02271327,28030.0,28029.0,1.62787492]
[1680594661462,0.02271327,28030.0,28029.0,1.92787492]
[1680594665831,0.02271327,28030.0,28029.0,2.28115396]
[1680594666047,0.02271327,28030.0,28029.0,1.92787492]
[1680594666708,0.02271327,28030.0,28029.0,2.33306554]
[1680594666932,0.02271327,28030.0,28029.0,2.03306554]
[1680594667131,0.02271327,28030.0,28029.0,1.46323674]
[1680594667633,0.02271327,28030.0,28029.0,1.52592219]
[1680594668112,0.02263208,28030.0,28029.0,1.52592219]
[1680594668995,0.02263208,28030.0,28029.0,1.46323674]
[1680594670573,0.02263208,28030.0,28029.0,1.28922817]
[1680594670791,0.02263208,28030.0,28029.0,1.7003452]
[1680594671668,0.02263208,28030.0,28029.0,1.7283452]
[1680594671915,0.02263208,28030.0,28029.0,1.8284652]
[1680594677933,0.02263208,28030.0,28029.0,2.20704724]
[1680594680943,0.02263208,28030.0,28029.0,1.90704724]
[1680594681159,0.02263208,28030.0,28029.0,1.90710724]
[1680594682913,0.02263208,28030.0,28029.0,1.80710724]
[1680594683558,0.02263208,28030.0,28029.0,1.57592519]
[1680594684225,0.02263208,28030.0,28029.0,1.67592519]
[1680594685010,0.02263208,28030.0,28029.0,1.84974721]
[1680594685231,0.02263208,28030.0,28029.0,1.12094315]
[1680594685669,0.02263208,28030.0,28029.0,1.12076315]
[1680594685889,0.02263208,28030.0,28029.0,1.32337827]
[1680594687010,0.02263208,28030.0,28029.0,1.12076315]
[1680594688570,0.02251968,28030.0,28029.0,1.12076315]
[1680594688786,0.02251968,28030.0,28029.0,1.22076315]
[1680594689438,0.02251968,28030.0,28029.0,1.22088315]
[1680594690025,0.02251968,28030.0,28029.0,1.22076315]
[1680594690241,0.02251968,28030.0,28029.0,1.45337827]
[1680594690905,0.02251968,28030.0,28029.0,1.72996954]
[1680594691118,0.02251968,28030.0,28029.0,1.49735442]
[1680594692491,0.02251968,28030.0,28029.0,1.43463739]
[1680594692939,0.02251968,28030.0,28029.0,1.46924384]
[1680594693159,0.02251968,28030.0,28029.0,1.49724384]
[1680594693379,0.02251968,28030.0,28029.0,1.46924384]
[1680594693589,0.02251968,28030.0,28029.0,1.49724384]
[1680594694027,0.02251968,28030.0,28029.0,1.46924384]
[1680594694255,0.02251968,28030.0,28029.0,1.49724384]
[1680594694979,0.02251968,28030.0,28029.0,1.46924384]
[1680594695231,0.02251968,28030.0,28029.0,1.43463739]
[1680594695481,0.02251968,28030.0,28029.0,1.40663739]
[1680594695716,0.02251968,28030.0,28029.0,1.43463739]
[1680594695925,0.02251968,28030.0,28029.0,1.40663739]
[1680594696141,0.02251968,28030.0,28029.0,1.43463739]
[1680594697672,0.02251968,28030.0,28029.0,1.40663739]
[1680594698117,0.02251968,28030.0,28029.0,1.05192683]
[1680594698342,0.08071968,28030.0,28029.0,1.29614394]
[1680594698578,0.08071968,28030.0,28029.0,1.33627694]
[1680594698804,0.08071968,28030.0,28029.0,1.30827694]
[1680594699074,0.08071968,28030.0,28029.0,1.33627694]
[1680594700652,0.08071968,28030.0,28029.0,0.96107694]
[1680594704927,0.08071968,28030.0,28029.0,1.14167683]
[1680594705148,0.08071968,28030.0,28029.0,0.96107694]
[1680594711454,0.08071968,28030.0,28029.0,0.96107694]
[1680594712569,0.08071968,28030.0,28029.0,1.6909875]
[1680594712798,0.08062212,28030.0,28029.0,1.6909875]
[1680594715165,0.08062212,28030.0,28029.0,1.43458439]
[1680594715386,0.08062212,28030.0,28029.0,1.65065534]
[1680594716062,0.08062212,28030.0,28029.0,1.43458439]
[1680594716282,0.08062212,28030.0,28029.0,1.43470439]
[1680594716499,0.08062212,28030.0,28029.0,1.43458439]
[1680594716929,0.08062212,28030.0,28029.0,1.6909875]
[1680594719944,0.08062212,28030.0,28029.0,1.43458439]
[1680594720167,0.08062212,28030.0,28029.0,1.6909875]
[1680594720751,0.08062212,28030.0,28029.0,0.94680694]
[1680594720954,0.08062212,28030.0,28029.0,0.96107694]
[1680594723022,0.08062212,28030.0,28029.0,0.55808267]
[1680594723237,0.08062212,28030.0,28029.0,0.30167956]
[1680594723447,0.08062212,28030.0,28029.0,0.31399556]
[1680594723650,0.08062212,28030.0,28029.0,0.31393556]
[1680594723861,0.08062212,28030.0,28029.0,0.31387556]
[1680594727571,0.08062212,28030.0,28029.0,0.13010423]
[1680594727803,0.08062212,28030.0,28029.0,0.51494215]
[1680594728698,0.02242212,28030.0,28029.0,0.51494215]
[1680594730230,0.02242212,28030.0,28029.0,0.51055515]
[1680594731090,0.08062212,28030.0,28029.0,0.51055515]
[1680594735354,0.08062212,28030.0,28029.0,0.49835915]
[1680594735783,0.08062212,28030.0,28029.0,0.51034315]
[1680594738736,0.08062212,28030.0,28029.0,0.49835915]
[1680594738942,0.08062212,28030.0,28029.0,0.51013715]
[1680594739156,0.08062212,28030.0,28029.0,0.51057815]
[1680594739926,0.08062212,28030.0,28029.0,0.49835915]
[1680594740331,0.08062212,28030.0,28029.0,0.50963715]
[1680594740537,0.08062212,28030.0,28029.0,0.48185509]
[1680594740738,0.08062212,28030.0,28029.0,0.7382582]
[1680594740940,0.02242212,28030.0,28029.0,0.7382582]
[1680594745699,0.02242212,28030.0,28029.0,0.7239882]
[1680594745982,0.00021,28034.0,28029.0,1.40832353]
[1680594746192,0.2,28040.0,28029.0,1.40832353]
[1680594746193,9e-05,28036.0,28034.0,0.03565]
[1680594746418,9e-05,28036.0,28035.0,0.98075737]
[1680594746638,9e-05,28036.0,28035.0,1.0836086]
[1680594746856,9e-05,28036.0,28035.0,1.198262]
[1680594747072,9e-05,28036.0,28035.0,0.94171179]
[1680594747287,0.2,28040.0,28035.0,1.50196882]
[1680594747503,0.2,28040.0,28039.0,0.12109863]
[1680594747731,0.2,28040.0,28039.0,0.14717863]
[1680594747960,0.2,28040.0,28039.0,0.25587863]
[1680594748690,0.2,28040.0,28039.0,0.28387863]
[1680594748956,0.2,28040.0,28039.0,0.19843]
[1680594749164,0.2,28040.0,28039.0,0.28000836]
[1680594749379,0.2,28040.0,28039.0,0.19843]
[1680594749804,0.2,28040.0,28039.0,0.58726665]
[1680594750046,0.26851325,28042.0,28039.0,1.31717721]
[1680594750047,0.02309,28042.0,28039.0,1.31717721]
[1680594750317,0.02288,28042.0,28041.0,0.03565]
[1680594750522,0.02288,28042.0,28041.0,0.061537]
[1680594750977,0.02288,28042.0,28041.0,0.049914]
[1680594751265,0.02288,28042.0,28041.0,0.061971]
[1680594751493,0.02288,28042.0,28041.0,0.40737812]
[1680594751722,0.02288,28042.0,28041.0,0.40755812]
[1680594751936,0.02288,28042.0,28041.0,0.43555812]
[1680594752434,0.02288,28042.0,28041.0,0.33555812]
[1680594752649,0.02288,28042.0,28041.0,0.30755812]
[1680594752865,0.02288,28042.0,28041.0,0.71631807]
[1680594754001,0.02288,28042.0,28041.0,0.74431807]
[1680594754870,0.02288,28042.0,28041.0,0.71631807]
[1680594755121,0.02288,28042.0,28041.0,0.74431807]
[1680594756021,0.02288,28042.0,28041.0,0.84431807]
[1680594756660,0.02288,28042.0,28041.0,0.43555812]
[1680594756888,0.02288,28042.0,28041.0,0.40755812]
[1680594757106,0.02288,28042.0,28041.0,0.78434346]
[1680594758466,0.02288,28042.0,28041.0,0.54667234]
[1680594758694,0.02288,28042.0,28041.0,0.53461534]
[1680594758947,0.02288,28042.0,28041.0,0.54592834]
[1680594760023,0.02288,28042.0,28041.0,0.56019234]
[1680594760291,0.02288,28042.0,28041.0,0.54592834]
[1680594761152,0.02288,28042.0,28041.0,0.197143]
[1680594761366,0.02288,28042.0,28041.0,0.18583]
[1680594761849,0.02288,28042.0,28041.0,0.198014]
[1680594762061,0.02288,28042.0,28041.0,0.18583]
[1680594762498,0.02288,28042.0,28041.0,0.197752]
[1680594764512,0.06028,28042.0,28041.0,0.197752]
[1680594764720,0.06028,28042.0,28041.0,0.18583]
[1680594766759,0.02288,28042.0,28041.0,0.197199]
[1680594766970,0.02288,28042.0,28041.0,0.18583]
[1680594767390,0.02288,28042.0,28041.0,0.197601]
[1680594767810,0.02288,28042.0,28041.0,0.18583]
[1680594768598,0.02288,28042.0,28041.0,0.197824]
[1680594769390,0.02288,28042.0,28041.0,0.200094]
[1680594769579,0.02288,28042.0,28041.0,0.197316]
[1680594769788,0.02288,28042.0,28041.0,0.200094]
[1680594770018,0.02288,28042.0,28041.0,0.211994]
[1680594770207,0.02288,28042.0,28041.0,0.61423013]
[1680594770418,0.02288,28042.0,28041.0,0.62849413]
[1680594770773,0.02278668,28042.0,28041.0,0.62849413]
[1680594770985,0.02278668,28042.0,28041.0,0.62843413]
[1680594771158,0.02278668,28042.0,28041.0,0.69401664]
[1680594771359,0.02278668,28042.0,28041.0,0.67975264]
[1680594772256,0.02278668,28042.0,28041.0,0.60215013]
[1680594772468,0.02278668,28042.0,28041.0,0.62799613]
[1680594772670,0.02278668,28042.0,28041.0,0.61373213]
[1680594774909,0.02278668,28042.0,28041.0,0.18565]
[1680594777448,0.05657312,28042.0,28041.0,0.18565]
[1680594778145,0.09737312,28042.0,28041.0,0.15]
[1680594778802,0.09737312,28042.0,28041.0,0.164264]
[1680594779019,0.09737312,28042.0,28041.0,0.49633744]
[1680594780109,0.09737312,28042.0,28041.0,0.48493844]
[1680594780350,0.09737312,28042.0,28041.0,0.49686544]
[1680594781025,0.05657312,28042.0,28041.0,0.53251544]
[1680594781531,0.05657312,28042.0,28041.0,0.58719938]
[1680594781745,0.05657312,28042.0,28041.0,0.53251544]
[1680594781964,0.05657312,28042.0,28041.0,0.52058844]
[1680594782171,0.05657312,28042.0,28041.0,0.53205344]
[1680594784213,0.05657312,28042.0,28041.0,0.52058844]
[1680594784427,0.05657312,28042.0,28041.0,0.53229944]
[1680594785254,0.05657312,28042.0,28041.0,0.59550665]
[1680594785897,0.05657312,28042.0,28041.0,0.53229944]
[1680594786116,0.05657312,28042.0,28041.0,0.49664944]
[1680594786939,0.05657312,28042.0,28041.0,0.48493844]
[1680594787377,0.05657312,28042.0,28041.0,0.45693844]
[1680594787587,0.05657312,28042.0,28041.0,0.49634844]
[1680594787991,0.05657312,28042.0,28041.0,0.46834844]
[1680594788219,0.05657312,28042.0,28041.0,0.48634844]
[1680594788483,0.05657312,28042.0,28041.0,0.53052565]
[1680594788828,0.05657312,28042.0,28041.0,0.48634844]
[1680594790805,0.05657312,28042.0,28041.0,0.69997002]
[1680594791062,0.05657312,28042.0,28041.0,0.9731412]
[1680594791282,0.05657312,28042.0,28041.0,0.8611412]
[1680594791425,0.05657312,28042.0,28041.0,0.86114676]
[1680594791850,0.05657312,28042.0,28041.0,0.84973676]